[Event "GrandPrix_30.05"]
[Site "Chess.com"]
[Date "2020.05.30"]
[Round "6"]
[White "N4700000"]
[Black "rfhfb"]
[Result "1-0"]
[WhiteElo "2232"]
[BlackElo "2092"]
[TimeControl "600+2"]
[EndTime "10:56:03 PDT"]
[Termination "N4700000 won by resignation"]

1. e4 {[%clk 0:08:44.8]} 1... e5 {[%clk 0:09:58.1]} 2. Nf3 {[%clk 0:08:44.4]}
2... Nc6 {[%clk 0:09:59.5]} 3. Bc4 {[%clk 0:08:42.7]} 3... Bc5 {[%clk
0:10:00.1]} 4. Nc3 {[%clk 0:08:38.6]} 4... Nf6 {[%clk 0:09:57.9]} 5. d3 {[%clk
0:08:38.9]} 5... h6 {[%clk 0:09:59]} 6. Be3 {[%clk 0:08:33.5]} 6... Bb6 {[%clk
0:10:00.1]} 7. O-O {[%clk 0:08:31.7]} 7... d6 {[%clk 0:09:58.1]} 8. h3 {[%clk
0:08:27.1]} 8... Be6 {[%clk 0:09:57.6]} 9. Nd5 {[%clk 0:08:25]} 9... Bxd5 {[%clk
0:09:32.8]} 10. Bxd5 {[%clk 0:08:12.1]} 10... Nxd5 {[%clk 0:09:27.2]} 11. exd5
{[%clk 0:08:14]} 11... Ne7 {[%clk 0:09:28.4]} 12. c4 {[%clk 0:08:13.4]} 12...
O-O {[%clk 0:09:21.1]} 13. b4 {[%clk 0:08:05.6]} 13... c6 {[%clk 0:08:29.6]} 14.
c5 {[%clk 0:07:55.7]} 14... Bc7 {[%clk 0:08:24]} 15. dxc6 {[%clk 0:07:54.5]}
15... Nxc6 {[%clk 0:07:58.5]} 16. b5 {[%clk 0:07:52]} 16... Ne7 {[%clk
0:07:58.6]} 17. d4 {[%clk 0:07:46.6]} 17... e4 {[%clk 0:06:25.4]} 18. Nd2 {[%clk
0:07:42.2]} 18... d5 {[%clk 0:06:00]} 19. a4 {[%clk 0:07:36.7]} 19... f5 {[%clk
0:05:33.1]} 20. f4 {[%clk 0:07:33.9]} 20... Kh7 {[%clk 0:05:32.4]} 21. Kh1
{[%clk 0:07:18.1]} 21... Qd7 {[%clk 0:05:25]} 22. Qe2 {[%clk 0:07:11.6]} 22...
Ng6 {[%clk 0:05:18.4]} 23. a5 {[%clk 0:07:07.9]} 23... a6 {[%clk 0:05:06.7]} 24.
c6 {[%clk 0:06:51.4]} 24... bxc6 {[%clk 0:05:06.2]} 25. b6 {[%clk 0:06:51.7]}
25... Bd6 {[%clk 0:05:07.6]} 26. Nb3 {[%clk 0:06:50.7]} 26... Ne7 {[%clk
0:05:05.4]} 27. Rac1 {[%clk 0:06:47.9]} 27... Rg8 {[%clk 0:03:41.6]} 28. Nc5
{[%clk 0:06:46.2]} 28... Bxc5 {[%clk 0:03:42.5]} 29. Rxc5 {[%clk 0:06:46.1]}
29... Rgf8 {[%clk 0:03:31.9]} 30. Rfc1 {[%clk 0:06:42.6]} 30... Rf6 {[%clk
0:03:31.7]} 31. Bf2 {[%clk 0:06:41.1]} 31... Ng6 {[%clk 0:03:12.8]} 32. Qe3
{[%clk 0:06:36.9]} 32... Rc8 {[%clk 0:03:00.5]} 33. Bg3 {[%clk 0:06:31.1]} 33...
Rd6 {[%clk 0:02:49.4]} 34. R1c2 {[%clk 0:06:24.2]} 34... Nf8 {[%clk 0:02:47.3]}
35. R5c3 {[%clk 0:06:15.4]} 35... Ne6 {[%clk 0:02:45.2]} 36. Bf2 {[%clk
0:06:00.3]} 36... Nd8 {[%clk 0:02:30.8]} 37. Qe2 {[%clk 0:05:45.1]} 37... Ra8
{[%clk 0:02:28.6]} 38. Be1 {[%clk 0:05:41.3]} 38... Ne6 {[%clk 0:02:25.4]} 39.
Qe3 {[%clk 0:05:35.8]} 39... g5 {[%clk 0:01:44.3]} 40. Bg3 {[%clk 0:05:27.5]}
40... Rf8 {[%clk 0:01:24.5]} 41. Rf2 {[%clk 0:05:21.4]} 41... c5 {[%clk
0:00:55.8]} 42. dxc5 {[%clk 0:04:39]} 42... d4 {[%clk 0:00:55.7]} 43. Qc1 {[%clk
0:04:39.3]} 43... dxc3 {[%clk 0:00:34]} 44. cxd6 {[%clk 0:04:38.3]} 44... Qxd6
{[%clk 0:00:35.9]} 45. Qxc3 {[%clk 0:04:30.7]} 45... gxf4 {[%clk 0:00:36.8]} 46.
Rd2 {[%clk 0:04:10.1]} 46... Qe7 {[%clk 0:00:11]} 47. Qc6 {[%clk 0:03:34.2]}
47... Rf7 {[%clk 0:00:07.5]} 48. Rd6 {[%clk 0:03:23.3]} 48... fxg3 {[%clk
0:00:08.5]} 49. Rxe6 {[%clk 0:03:23.1]} 49... Qg5 {[%clk 0:00:10.1]} 50. b7
{[%clk 0:03:07.8]} 50... Qd2 {[%clk 0:00:05.7]} 51. Rxh6+ {[%clk 0:03:03.5]}
51... Qxh6 {[%clk 0:00:06.6]} 52. Qxh6+ {[%clk 0:03:03.4]} 52... Kxh6 {[%clk
0:00:08.5]} 53. b8=Q {[%clk 0:03:03.6]} 53... f4 {[%clk 0:00:06.2]} 54. Qd6+
{[%clk 0:02:57.9]} 54... Kh7 {[%clk 0:00:05.3]} 55. Qe6 {[%clk 0:02:39.5]} 55...
Rc7 {[%clk 0:00:05]} 56. Qxe4+ {[%clk 0:02:40]} 56... Kg8 {[%clk 0:00:04.9]} 57.
Qxf4 {[%clk 0:02:39.6]} 1-0

[Event "GrandPrix_30.05"]
[Site "Chess.com"]
[Date "2020.05.30"]
[Round "6"]
[White "EvgenyRomanov"]
[Black "Glek_Igor"]
[Result "1-0"]
[WhiteElo "2296"]
[BlackElo "2443"]
[TimeControl "600+2"]
[EndTime "10:56:09 PDT"]
[Termination "EvgenyRomanov won on time"]

1. d4 {[%clk 0:10:01.9]} 1... e6 {[%clk 0:09:59.6]} 2. Nf3 {[%clk 0:09:58.5]}
2... f5 {[%clk 0:09:59.1]} 3. c4 {[%clk 0:09:39.4]} 3... Nf6 {[%clk 0:09:58.1]}
4. Nc3 {[%clk 0:09:40.5]} 4... Bb4 {[%clk 0:09:58.5]} 5. Bd2 {[%clk 0:09:40]}
5... a5 {[%clk 0:09:49]} 6. e3 {[%clk 0:09:39.4]} 6... b6 {[%clk 0:09:43.5]} 7.
Bd3 {[%clk 0:09:38.9]} 7... Bb7 {[%clk 0:09:44.3]} 8. O-O {[%clk 0:09:39.2]}
8... O-O {[%clk 0:09:38.3]} 9. d5 {[%clk 0:09:37]} 9... Na6 {[%clk 0:09:32.2]}
10. Rc1 {[%clk 0:08:57.5]} 10... Nc5 {[%clk 0:09:21.7]} 11. Bb1 {[%clk
0:08:58.2]} 11... Bxc3 {[%clk 0:08:03.8]} 12. Bxc3 {[%clk 0:08:54]} 12... exd5
{[%clk 0:08:01.7]} 13. Bxf5 {[%clk 0:06:39.5]} 13... dxc4 {[%clk 0:07:57.8]} 14.
Qd4 {[%clk 0:06:18.8]} 14... d5 {[%clk 0:07:05.5]} 15. Ng5 {[%clk 0:06:11.5]}
15... Qe7 {[%clk 0:06:46.1]} 16. Qh4 {[%clk 0:05:33.9]} 16... g6 {[%clk
0:05:26.2]} 17. Bc2 {[%clk 0:05:22.1]} 17... Nfe4 {[%clk 0:05:02.3]} 18. f4
{[%clk 0:04:36.8]} 18... Nxc3 {[%clk 0:04:09.1]} 19. bxc3 {[%clk 0:04:35.7]}
19... Ne6 {[%clk 0:04:01.3]} 20. Nf3 {[%clk 0:04:15.6]} 20... Qxh4 {[%clk
0:03:59]} 21. Nxh4 {[%clk 0:04:17.5]} 21... Nc5 {[%clk 0:03:39.2]} 22. Rfd1
{[%clk 0:04:16]} 22... Rae8 {[%clk 0:03:36]} 23. Kf2 {[%clk 0:04:15]} 23... g5
{[%clk 0:01:39.1]} 24. Nf5 {[%clk 0:04:10.6]} 24... Ne4+ {[%clk 0:01:20.1]} 25.
Bxe4 {[%clk 0:04:08.8]} 25... Rxe4 {[%clk 0:01:21.5]} 26. Ng3 {[%clk 0:04:04.6]}
26... Re7 {[%clk 0:01:11.7]} 27. Nh5 {[%clk 0:03:50]} 27... c6 {[%clk
0:00:46.3]} 28. g4 {[%clk 0:03:44.5]} 28... Bc8 {[%clk 0:00:32.2]} 29. h3 {[%clk
0:03:42.1]} 29... Bd7 {[%clk 0:00:28.3]} 30. Rb1 {[%clk 0:03:07.7]} 30... b5
{[%clk 0:00:24.7]} 31. a4 {[%clk 0:03:08.5]} 31... Be8 {[%clk 0:00:19.7]} 32.
Ng3 {[%clk 0:02:42.7]} 32... gxf4 {[%clk 0:00:15.5]} 33. Nf5 {[%clk 0:02:43]}
33... fxe3+ {[%clk 0:00:14.9]} 34. Ke1 {[%clk 0:02:42.9]} 34... Rxf5 {[%clk
0:00:12.8]} 35. gxf5 {[%clk 0:02:43.2]} 35... Re5 {[%clk 0:00:13.2]} 36. Rd4
{[%clk 0:02:30.3]} 36... Rxf5 {[%clk 0:00:12.1]} 37. Ke2 {[%clk 0:02:29.6]}
37... Re5 {[%clk 0:00:08.6]} 38. axb5 {[%clk 0:02:13.1]} 38... cxb5 {[%clk
0:00:08.5]} 39. Kf3 {[%clk 0:02:14.1]} 39... Bc6 {[%clk 0:00:02.6]} 40. Ke2
{[%clk 0:01:21]} 1-0

[Event "GrandPrix_30.05"]
[Site "Chess.com"]
[Date "2020.05.30"]
[Round "6"]
[White "Karacsonyi_Gellert"]
[Black "OhanyanEminChess"]
[Result "1-0"]
[WhiteElo "2203"]
[BlackElo "2071"]
[TimeControl "600+2"]
[EndTime "10:56:15 PDT"]
[Termination "Karacsonyi_Gellert won by resignation"]

1. e4 {[%clk 0:10:01.9]} 1... e5 {[%clk 0:09:30.2]} 2. Nf3 {[%clk 0:10:01.7]}
2... Nc6 {[%clk 0:09:29.4]} 3. Bb5 {[%clk 0:10:03.1]} 3... f5 {[%clk 0:09:30.1]}
4. d3 {[%clk 0:09:53.7]} 4... fxe4 {[%clk 0:09:26.1]} 5. dxe4 {[%clk 0:09:54.7]}
5... Nf6 {[%clk 0:09:27]} 6. O-O {[%clk 0:09:43.8]} 6... Bc5 {[%clk 0:09:27.2]}
7. Bg5 {[%clk 0:09:41.1]} 7... d6 {[%clk 0:09:25.7]} 8. Nc3 {[%clk 0:09:40.9]}
8... O-O {[%clk 0:09:24.9]} 9. Bc4+ {[%clk 0:08:54]} 9... Kh8 {[%clk 0:09:25.3]}
10. Nd5 {[%clk 0:08:55.4]} 10... Be6 {[%clk 0:08:29.2]} 11. Nxf6 {[%clk
0:08:31.7]} 11... gxf6 {[%clk 0:08:27.9]} 12. Bxe6 {[%clk 0:08:28.1]} 12... fxg5
{[%clk 0:08:27.6]} 13. Qd2 {[%clk 0:08:02]} 13... Qf6 {[%clk 0:06:24.4]} 14. Bd5
{[%clk 0:06:05.4]} 14... g4 {[%clk 0:05:56.5]} 15. Ne1 {[%clk 0:06:06]} 15...
Ne7 {[%clk 0:04:27.7]} 16. Nd3 {[%clk 0:05:34.6]} 16... Bb6 {[%clk 0:04:23.8]}
17. Bxb7 {[%clk 0:05:28.6]} 17... Rab8 {[%clk 0:04:24]} 18. Ba6 {[%clk
0:05:05.2]} 18... Qh4 {[%clk 0:03:39.7]} 19. g3 {[%clk 0:04:13.4]} 19... Qh3
{[%clk 0:03:33]} 20. Qg5 {[%clk 0:04:13.9]} 20... Ng6 {[%clk 0:03:30.5]} 21. a4
{[%clk 0:04:10]} 21... Rf3 {[%clk 0:02:17.2]} 22. Kh1 {[%clk 0:04:03.2]} 22...
Rbf8 {[%clk 0:01:45]} 23. Qd2 {[%clk 0:03:56.1]} 23... Rxg3 {[%clk 0:00:36.7]}
24. Nf4 {[%clk 0:03:52.9]} 24... exf4 {[%clk 0:00:16.5]} 25. fxg3 {[%clk
0:03:52.4]} 25... f3 {[%clk 0:00:14.1]} 26. Rfd1 {[%clk 0:02:57.5]} 26... f2
{[%clk 0:00:09.6]} 27. Bf1 {[%clk 0:02:54.6]} 27... Qh5 {[%clk 0:00:06.1]} 28.
a5 {[%clk 0:02:48.8]} 28... Ne5 {[%clk 0:00:04.1]} 29. axb6 {[%clk 0:02:37.8]}
29... axb6 {[%clk 0:00:05.3]} 30. Bd3 {[%clk 0:01:30.4]} 30... Qf7 {[%clk
0:00:03.1]} 31. Qe2 {[%clk 0:01:17.9]} 31... Qg6 {[%clk 0:00:02.7]} 32. Rf1
{[%clk 0:01:16.6]} 32... Qf6 {[%clk 0:00:03.2]} 33. Kg2 {[%clk 0:01:10.1]} 33...
Nf3 {[%clk 0:00:04.4]} 34. Rxf2 {[%clk 0:00:57.1]} 34... Qh6 {[%clk 0:00:05.9]}
35. Kh1 {[%clk 0:00:57.6]} 35... Re8 {[%clk 0:00:07.2]} 36. Rxf3 {[%clk
0:00:54.4]} 36... gxf3 {[%clk 0:00:09.1]} 37. Qxf3 {[%clk 0:00:55.9]} 37... Rf8
{[%clk 0:00:11]} 38. Qg2 {[%clk 0:00:55.3]} 1-0

[Event "GrandPrix_30.05"]
[Site "Chess.com"]
[Date "2020.05.30"]
[Round "6"]
[White "szachuspl"]
[Black "cassoulet"]
[Result "1/2-1/2"]
[WhiteElo "2362"]
[BlackElo "2223"]
[TimeControl "600+2"]
[EndTime "10:56:17 PDT"]
[Termination "Game drawn by repetition"]

1. d4 {[%clk 0:10:01.9]} 1... d5 {[%clk 0:10:00.2]} 2. c4 {[%clk 0:09:57.1]}
2... e6 {[%clk 0:10:01.2]} 3. Nf3 {[%clk 0:09:57.5]} 3... Nf6 {[%clk 0:10:02.7]}
4. Nc3 {[%clk 0:09:58.2]} 4... Be7 {[%clk 0:10:03.5]} 5. Bf4 {[%clk 0:09:58.5]}
5... O-O {[%clk 0:10:04.6]} 6. e3 {[%clk 0:09:59.7]} 6... Ne4 {[%clk 0:10:05.9]}
7. Bd3 {[%clk 0:09:56.3]} 7... f5 {[%clk 0:10:04.9]} 8. O-O {[%clk 0:09:57]}
8... c6 {[%clk 0:10:06]} 9. Qb3 {[%clk 0:09:37.3]} 9... Nd7 {[%clk 0:10:06]} 10.
cxd5 {[%clk 0:09:33.8]} 10... cxd5 {[%clk 0:09:57.1]} 11. Nb5 {[%clk 0:09:20.3]}
11... g5 {[%clk 0:09:30]} 12. Bc7 {[%clk 0:09:02.1]} 12... Qe8 {[%clk
0:09:29.7]} 13. Bxe4 {[%clk 0:08:51.9]} 13... fxe4 {[%clk 0:09:17.3]} 14. Ne5
{[%clk 0:08:48.2]} 14... a6 {[%clk 0:08:28.1]} 15. Nd6 {[%clk 0:08:40.2]} 15...
Bxd6 {[%clk 0:08:28.8]} 16. Bxd6 {[%clk 0:08:41]} 16... Nxe5 {[%clk 0:08:24.7]}
17. Bxf8 {[%clk 0:07:40.8]} 17... Nc4 {[%clk 0:08:16.2]} 18. Bb4 {[%clk
0:07:40]} 18... Bd7 {[%clk 0:08:06.1]} 19. Be1 {[%clk 0:07:08.8]} 19... b6
{[%clk 0:07:28.1]} 20. f3 {[%clk 0:06:47]} 20... exf3 {[%clk 0:07:17.2]} 21.
Rxf3 {[%clk 0:06:47.6]} 21... Qg6 {[%clk 0:07:10]} 22. Qb4 {[%clk 0:06:20.5]}
22... g4 {[%clk 0:07:01.2]} 23. Rf2 {[%clk 0:05:32.8]} 23... Qg5 {[%clk
0:06:47.1]} 24. Bd2 {[%clk 0:05:13.5]} 24... a5 {[%clk 0:06:41.6]} 25. Qc3
{[%clk 0:05:09.5]} 25... Rc8 {[%clk 0:06:40.9]} 26. Raf1 {[%clk 0:05:00.2]}
26... Qg7 {[%clk 0:05:05.4]} 27. Bc1 {[%clk 0:04:52.5]} 27... Nd6 {[%clk
0:04:34]} 28. Qb3 {[%clk 0:04:34.5]} 28... Bb5 {[%clk 0:03:48.2]} 29. Re1 {[%clk
0:04:25.1]} 29... Qc7 {[%clk 0:03:42.8]} 30. Qd1 {[%clk 0:04:15.5]} 30... h5
{[%clk 0:03:21.5]} 31. Rf6 {[%clk 0:02:47]} 31... Qe7 {[%clk 0:02:52.7]} 32. Rf4
{[%clk 0:02:39.3]} 32... Ne4 {[%clk 0:02:37.7]} 33. h3 {[%clk 0:02:37.9]} 33...
Qh4 {[%clk 0:01:55.7]} 34. hxg4 {[%clk 0:02:26.1]} 34... Rc2 {[%clk 0:00:58.7]}
35. Qxc2 {[%clk 0:00:34.8]} 35... Qxe1+ {[%clk 0:00:59.1]} 36. Kh2 {[%clk
0:00:36.2]} 36... Qg3+ {[%clk 0:00:48.6]} 37. Kg1 {[%clk 0:00:33]} 37... Qe1+
{[%clk 0:00:42.1]} 38. Kh2 {[%clk 0:00:34]} 38... Qh4+ {[%clk 0:00:33.5]} 39.
Kg1 {[%clk 0:00:34]} 39... Qe1+ {[%clk 0:00:34.3]} 1/2-1/2

[Event "GrandPrix_30.05"]
[Site "Chess.com"]
[Date "2020.05.30"]
[Round "6"]
[White "Jan1401"]
[Black "Vnebo"]
[Result "1-0"]
[WhiteElo "2272"]
[BlackElo "2117"]
[TimeControl "600+2"]
[EndTime "10:56:21 PDT"]
[Termination "Jan1401 won by resignation"]

1. e4 {[%clk 0:10:00.9]} 1... c5 {[%clk 0:09:57]} 2. Nf3 {[%clk 0:10:01.2]} 2...
d6 {[%clk 0:09:58]} 3. Bb5+ {[%clk 0:10:01.1]} 3... Bd7 {[%clk 0:09:58]} 4.
Bxd7+ {[%clk 0:10:01.3]} 4... Qxd7 {[%clk 0:09:59.9]} 5. O-O {[%clk 0:10:02.1]}
5... Nf6 {[%clk 0:09:48.1]} 6. Re1 {[%clk 0:10:02.4]} 6... Nc6 {[%clk
0:09:46.1]} 7. c3 {[%clk 0:10:03]} 7... e6 {[%clk 0:09:46]} 8. d4 {[%clk
0:10:03.6]} 8... cxd4 {[%clk 0:09:47.3]} 9. cxd4 {[%clk 0:10:04.8]} 9... d5
{[%clk 0:09:48.3]} 10. e5 {[%clk 0:10:05.9]} 10... Ne4 {[%clk 0:09:49.5]} 11. a3
{[%clk 0:10:07]} 11... Be7 {[%clk 0:09:44.6]} 12. Nbd2 {[%clk 0:10:07.9]} 12...
Nxd2 {[%clk 0:09:43.7]} 13. Bxd2 {[%clk 0:10:08.9]} 13... O-O {[%clk 0:09:45.1]}
14. Rc1 {[%clk 0:10:09.4]} 14... Rfc8 {[%clk 0:09:42.8]} 15. Rc3 {[%clk
0:10:08.3]} 15... Bd8 {[%clk 0:09:38]} 16. Rd3 {[%clk 0:09:39.1]} 16... Ne7
{[%clk 0:09:03.4]} 17. Ng5 {[%clk 0:09:05.8]} 17... h6 {[%clk 0:08:47.8]} 18.
Nh3 {[%clk 0:09:00.8]} 18... Qb5 {[%clk 0:08:16.3]} 19. Rb3 {[%clk 0:07:55.8]}
19... Qc4 {[%clk 0:08:03.9]} 20. Rb4 {[%clk 0:06:50.5]} 20... Qc2 {[%clk
0:07:25.4]} 21. Rxb7 {[%clk 0:06:46]} 21... Qxd1 {[%clk 0:06:16.8]} 22. Rxd1
{[%clk 0:06:46.5]} 22... Nc6 {[%clk 0:06:17.7]} 23. Bc3 {[%clk 0:06:22.8]} 23...
Bb6 {[%clk 0:06:13.7]} 24. Kf1 {[%clk 0:06:16.9]} 24... Kf8 {[%clk 0:05:50.7]}
25. Nf4 {[%clk 0:06:14.4]} 25... Ke8 {[%clk 0:04:28.7]} 26. Nxe6 {[%clk
0:04:27.3]} 26... fxe6 {[%clk 0:04:30.6]} 27. Rxg7 {[%clk 0:04:28]} 27... a5
{[%clk 0:03:42.5]} 28. Rg6 {[%clk 0:03:41.2]} 28... Kd7 {[%clk 0:03:34.2]} 29.
Rxh6 {[%clk 0:03:39.8]} 29... Rh8 {[%clk 0:03:32.2]} 30. Rxh8 {[%clk 0:03:35.8]}
30... Rxh8 {[%clk 0:03:34.1]} 31. h3 {[%clk 0:03:36]} 31... Rh4 {[%clk 0:03:18]}
32. g3 {[%clk 0:03:06.8]} 32... Rxh3 {[%clk 0:03:15.3]} 33. Kg2 {[%clk
0:03:04.9]} 33... Rh8 {[%clk 0:03:04.1]} 34. g4 {[%clk 0:03:02.6]} 34... Rf8
{[%clk 0:01:04.3]} 35. Kg3 {[%clk 0:02:56.6]} 35... Nxe5 {[%clk 0:00:51.8]} 36.
dxe5 {[%clk 0:02:54.9]} 36... Bxf2+ {[%clk 0:00:53.7]} 37. Kg2 {[%clk
0:02:54.3]} 37... Bb6 {[%clk 0:00:53.2]} 38. Bd4 {[%clk 0:02:44.5]} 38... Bxd4
{[%clk 0:00:39]} 39. Rxd4 {[%clk 0:02:44.4]} 39... Rc8 {[%clk 0:00:36.1]} 40.
Ra4 {[%clk 0:02:29.3]} 40... Rc2+ {[%clk 0:00:20.8]} 41. Kf3 {[%clk 0:02:29.8]}
41... Rxb2 {[%clk 0:00:22.2]} 42. Rxa5 {[%clk 0:02:30.3]} 42... Ke7 {[%clk
0:00:19.5]} 43. Ra7+ {[%clk 0:02:29]} 43... Kf8 {[%clk 0:00:20.4]} 44. g5 {[%clk
0:02:09.1]} 44... Rb1 {[%clk 0:00:18.8]} 45. a4 {[%clk 0:01:57.5]} 45... Re1
{[%clk 0:00:17.9]} 46. g6 {[%clk 0:01:53]} 46... Rxe5 {[%clk 0:00:16.4]} 47.
Rf7+ {[%clk 0:01:48.7]} 47... Kg8 {[%clk 0:00:12.4]} 48. a5 {[%clk 0:01:49.7]}
48... d4 {[%clk 0:00:07.9]} 49. a6 {[%clk 0:01:50.2]} 49... Ra5 {[%clk
0:00:08.7]} 50. a7 {[%clk 0:01:49.8]} 50... d3 {[%clk 0:00:09]} 51. Ke3 {[%clk
0:01:48.7]} 1-0

[Event "GrandPrix_30.05"]
[Site "Chess.com"]
[Date "2020.05.30"]
[Round "6"]
[White "Evgeny81"]
[Black "Anton_Demchenko"]
[Result "0-1"]
[WhiteElo "2396"]
[BlackElo "2627"]
[TimeControl "600+2"]
[EndTime "10:56:25 PDT"]
[Termination "Anton_Demchenko won on time"]

1. d4 {[%clk 0:10:01.9]} 1... Nf6 {[%clk 0:10:00.1]} 2. c4 {[%clk 0:10:02.4]}
2... d6 {[%clk 0:10:01.3]} 3. Nf3 {[%clk 0:10:02.1]} 3... Nc6 {[%clk 0:10:02.1]}
4. Nc3 {[%clk 0:09:58.8]} 4... e5 {[%clk 0:10:02.7]} 5. d5 {[%clk 0:09:55.7]}
5... Ne7 {[%clk 0:10:03.3]} 6. e4 {[%clk 0:09:22.3]} 6... Ng6 {[%clk 0:10:04]}
7. h4 {[%clk 0:09:00.3]} 7... Be7 {[%clk 0:10:03.6]} 8. g3 {[%clk 0:08:57.8]}
8... Nf8 {[%clk 0:10:02.6]} 9. c5 {[%clk 0:08:26.2]} 9... N8d7 {[%clk
0:09:57.1]} 10. cxd6 {[%clk 0:08:01.8]} 10... Bxd6 {[%clk 0:09:47.9]} 11. Bh3
{[%clk 0:07:27.2]} 11... O-O {[%clk 0:09:44.1]} 12. O-O {[%clk 0:07:28]} 12...
a6 {[%clk 0:09:35.5]} 13. Qe2 {[%clk 0:07:22.8]} 13... b5 {[%clk 0:09:10.8]} 14.
a3 {[%clk 0:07:09.4]} 14... h6 {[%clk 0:08:48.2]} 15. Be3 {[%clk 0:07:05]} 15...
Re8 {[%clk 0:08:43.6]} 16. Rac1 {[%clk 0:06:35.5]} 16... Nf8 {[%clk 0:08:11.4]}
17. Bxc8 {[%clk 0:06:34.9]} 17... Qxc8 {[%clk 0:08:13.3]} 18. Kg2 {[%clk
0:06:28.2]} 18... Ng6 {[%clk 0:08:07.3]} 19. Nd2 {[%clk 0:05:50.9]} 19... Ng4
{[%clk 0:07:58.9]} 20. Nd1 {[%clk 0:05:27.6]} 20... f5 {[%clk 0:07:39.9]} 21.
exf5 {[%clk 0:05:02.9]} 21... Qxf5 {[%clk 0:07:37.1]} 22. Qf3 {[%clk 0:03:39.4]}
22... Qh5 {[%clk 0:07:35]} 23. Nc3 {[%clk 0:03:10.2]} 23... Rf8 {[%clk 0:06:39]}
24. Qe2 {[%clk 0:02:53]} 24... Nf4+ {[%clk 0:02:44.6]} 25. gxf4 {[%clk 0:02:53]}
25... exf4 {[%clk 0:02:46.5]} 26. Bd4 {[%clk 0:02:52.1]} 26... f3+ {[%clk
0:02:21.1]} 27. Nxf3 {[%clk 0:02:52.4]} 27... Rf4 {[%clk 0:01:23.4]} 28. Ne4
{[%clk 0:01:25.7]} 28... Raf8 {[%clk 0:01:00.8]} 29. Ng3 {[%clk 0:01:04.4]}
29... Qxd5 {[%clk 0:01:01.2]} 30. Rc3 {[%clk 0:00:38.7]} 30... Rxd4 {[%clk
0:01:02.1]} 31. Re1 {[%clk 0:00:17.6]} 31... Ne5 {[%clk 0:00:36.5]} 32. Ne4
{[%clk 0:00:05]} 32... Nd3 {[%clk 0:00:35]} 33. Rxd3 {[%clk 0:00:03.9]} 33...
Rxd3 {[%clk 0:00:36.5]} 0-1